bitfinex/quotes_BTCUSD_20240731
["timestamp","ask_amount","ask_price","bid_price","bid_amount"]
[1722412908770,0.32868653,66368.0,66367.0,0.007]
[1722412909271,0.41818864,66368.0,66367.0,0.007]
[1722412909447,0.41663444,66368.0,66367.0,0.007]
[1722412909648,0.41656539,66368.0,66367.0,0.007]
[1722412910448,0.71935095,66368.0,66367.0,0.007]
[1722412910668,0.62837164,66368.0,66367.0,0.007]
[1722412911876,1.19228437,66368.0,66367.0,0.007]
[1722412912080,1.38170468,66368.0,66367.0,0.007]
[1722412912843,1.38274046,66368.0,66367.0,0.007]
[1722412913051,1.38132656,66368.0,66367.0,0.007]
[1722412913477,1.38288076,66368.0,66367.0,0.007]
[1722412914239,1.51726984,66368.0,66367.0,0.007]
[1722412914603,1.51571564,66368.0,66367.0,0.007]
[1722412915432,1.38132656,66368.0,66367.0,0.007]
[1722412915640,1.07997656,66368.0,66367.0,0.007]
[1722412915815,1.21448898,66368.0,66367.0,0.007]
[1722412916269,1.04799715,66368.0,66367.0,0.007]
[1722412916488,1.08045042,66368.0,66367.0,0.007]
[1722412916668,0.62846738,66368.0,66367.0,0.007]
[1722412916880,0.68621949,66368.0,66367.0,0.007]
[1722412917084,0.23419449,66368.0,66367.0,0.007]
[1722412917289,0.03944238,66368.0,66367.0,0.007]
[1722412917492,0.04099658,66368.0,66367.0,0.007]
[1722412918194,0.03944238,66368.0,66367.0,0.157677]
[1722412918394,0.17399449,66368.0,66367.0,0.007]
[1722412919163,0.03944238,66368.0,66367.0,0.007]
[1722412919616,0.0393189,66368.0,66367.0,0.007]
[1722412919769,0.0393189,66368.0,66367.0,0.157677]
[1722412920146,0.0393189,66368.0,66367.0,0.459031]
[1722412920350,0.0393189,66368.0,66367.0,0.157677]
[1722412921979,0.0393189,66368.0,66367.0,0.82819829]
[1722412922182,0.00698911,66368.0,66367.0,0.907785]
[1722412922331,0.13487098,66369.0,66368.0,0.753375]
[1722412922535,0.13487098,66370.0,66369.0,0.452017]
[1722412922941,0.001,66371.0,66370.0,0.15067]
[1722412923101,0.03341596,66371.0,66370.0,0.15067]
[1722412923746,0.03341596,66371.0,66368.0,0.30135]
[1722412923946,0.03241596,66370.0,66369.0,0.452017]
[1722412924150,0.03241596,66370.0,66369.0,0.150672]
[1722412924346,0.03944352,66370.0,66369.0,0.159672]
[1722412924578,0.03944352,66370.0,66369.0,1.28335323]
[1722412924785,0.00702756,66370.0,66369.0,1.28034004]
[1722412924999,0.001,66371.0,66369.0,1.28034004]
[1722412925000,0.001,66371.0,66370.0,0.75335]
[1722412925653,0.001,66371.0,66370.0,0.45201]
[1722412925899,0.14288203,66371.0,66370.0,0.15067]
[1722412926208,0.14285799,66371.0,66370.0,0.15067]
[1722412926886,0.14285799,66371.0,66370.0,0.45201]
[1722412927063,0.00800062,66371.0,66370.0,0.45201]
[1722412927255,0.00800062,66371.0,66370.0,0.45801]
[1722412927959,0.00800062,66371.0,66370.0,0.46601]
[1722412929992,0.00887903,66371.0,66370.0,0.014]
[1722412930166,0.00800062,66371.0,66370.0,0.006]
[1722412930412,0.32920866,66371.0,66370.0,0.006]
[1722412930611,0.71244466,66371.0,66370.0,0.006]
[1722412930808,1.31511666,66371.0,66370.0,0.009]
[1722412931022,0.30136,66366.0,66358.0,0.000913]
[1722412931237,0.32362139,66359.0,66358.0,0.000913]
[1722412931438,0.512685,66359.0,66358.0,0.000913]
[1722412931648,0.51972094,66359.0,66358.0,0.000913]
[1722412931823,0.6545126,66359.0,66358.0,0.000913]
[1722412932022,0.9559026,66359.0,66358.0,0.000913]
[1722412932231,0.55247066,66359.0,66358.0,0.000913]
[1722412933440,0.25108066,66359.0,66358.0,0.000913]
[1722412933641,0.10038566,66359.0,66358.0,0.000913]
[1722412933971,0.03978566,66359.0,66358.0,0.012913]
[1722412934175,0.14180083,66359.0,66358.0,0.012913]
[1722412934378,0.29249583,66359.0,66358.0,0.012913]
[1722412934595,0.59388583,66359.0,66358.0,0.012913]
[1722412935435,0.89527583,66359.0,66358.0,0.012913]
[1722412935754,0.59388583,66359.0,66358.0,0.012913]
[1722412935956,0.90841094,66359.0,66358.0,0.012913]
[1722412936158,0.94148317,66359.0,66358.0,0.026913]
[1722412936358,0.64009317,66359.0,66358.0,0.026913]
[1722412937149,0.25640317,66359.0,66358.0,0.026913]
[1722412937336,0.29247458,66359.0,66358.0,0.026913]
[1722412937533,0.59386458,66359.0,66358.0,0.026913]
[1722412939037,0.73116458,66359.0,66358.0,0.026913]
[1722412939244,0.59642094,66359.0,66358.0,0.026913]
[1722412939672,0.89781094,66359.0,66358.0,0.026913]
[1722412940026,0.59642094,66359.0,66358.0,0.026913]
[1722412940231,0.65425773,66359.0,66358.0,0.026913]
[1722412940655,0.51952094,66359.0,66358.0,0.026913]
[1722412940860,0.6542594,66359.0,66358.0,0.026913]
[1722412941125,0.5938594,66359.0,66358.0,0.026913]
[1722412941540,0.59386098,66359.0,66358.0,0.026913]
[1722412941757,0.45912094,66359.0,66358.0,0.026913]
[1722412941932,0.52362094,66359.0,66358.0,0.026913]
[1722412943607,0.65835353,66359.0,66358.0,0.026913]
[1722412945887,0.52362094,66359.0,66358.0,0.026913]
[1722412946114,0.65834645,66359.0,66358.0,0.026913]
[1722412949430,0.65833967,66359.0,66358.0,0.026913]
[1722412950315,0.52362094,66359.0,66358.0,0.026913]
[1722412950526,0.65833967,66359.0,66358.0,0.026913]
[1722412951402,0.76051094,66359.0,66358.0,0.026913]
[1722412951609,0.45912094,66359.0,66358.0,0.026913]
[1722412954474,0.45912094,66359.0,66358.0,0.167313]
[1722412954606,0.15773094,66359.0,66358.0,0.167313]
[1722412954809,0.00703594,66359.0,66358.0,0.167313]
[1722412955030,0.00703594,66359.0,66358.0,0.31801]
[1722412955186,0.45290676,66366.0,66360.0,0.0801]
[1722412955187,0.150684,66364.0,66360.0,0.0801]
[1722412955386,0.150684,66364.0,66361.0,0.0639]
[1722412955588,0.150684,66364.0,66362.0,0.0801]
[1722412955855,0.150686,66363.0,66362.0,0.0801]
[1722412956338,0.452058,66363.0,66362.0,0.0801]
[1722412956717,0.47102281,66363.0,66360.0,0.007]
[1722412956895,0.15069,66361.0,66360.0,0.007]
[1722412957068,0.452071,66361.0,66360.0,0.007]
[1722412957276,0.62172716,66361.0,66360.0,0.007]
[1722412957488,0.48700638,66361.0,66360.0,0.007]
[1722412957880,0.48700638,66361.0,66358.0,0.000913]
[1722412957881,0.150695,66360.0,66358.0,0.000913]
[1722412958605,0.13472078,66362.0,66359.0,0.1407]
[1722412958805,0.18582646,66361.0,66359.0,0.1407]
[1722412959003,0.43609278,66363.0,66360.0,0.01]
[1722412959004,0.301377,66362.0,66360.0,0.01]
[1722412959319,0.48720811,66361.0,66360.0,0.01]
[1722412959540,0.150693,66360.0,66359.0,0.0751]
[1722412959742,0.18582911,66360.0,66359.0,0.0841]
[1722412960824,0.48721511,66360.0,66359.0,0.0841]
[1722412961038,0.452085,66359.0,66358.0,0.000913]
[1722412961243,0.48722111,66359.0,66358.0,0.000913]
[1722412961445,0.78861111,66359.0,66358.0,0.000913]
[1722412962129,0.78861111,66359.0,66358.0,0.014913]
[1722412962525,0.753475,66359.0,66358.0,0.014913]
[1722412962735,0.78748416,66359.0,66358.0,0.026913]
[1722412965906,0.753475,66359.0,66358.0,0.026913]
[1722412966100,0.78734552,66359.0,66358.0,0.026913]
[1722412969256,0.92206087,66359.0,66358.0,0.026913]
[1722412969471,0.92915909,66359.0,66358.0,0.026913]
[1722412971465,0.79444352,66359.0,66358.0,0.026913]
[1722412972104,0.76044839,66359.0,66358.0,0.026913]
[1722412972332,0.79459106,66359.0,66358.0,0.026913]
[1722412972745,0.79461779,66359.0,66358.0,0.026913]
[1722412973722,0.94624612,66359.0,66358.0,0.026913]
[1722412973927,0.79461779,66359.0,66358.0,0.026913]
[1722412975397,0.94624612,66359.0,66358.0,0.026913]
[1722412976044,0.79463879,66359.0,66358.0,0.026913]
[1722412976237,0.94634306,66359.0,66358.0,0.026913]
[1722412976452,0.79463879,66359.0,66358.0,0.026913]
[1722412977864,0.93983879,66359.0,66358.0,0.026913]
[1722412978098,1.24122879,66359.0,66358.0,0.026913]
[1722412979366,1.54261879,66359.0,66358.0,0.026913]
[1722412979569,1.32667932,66359.0,66358.0,0.014913]
[1722412979782,1.32667932,66359.0,66358.0,0.000913]
[1722412979987,1.54801467,66359.0,66358.0,0.000913]
[1722412980191,1.54801467,66359.0,66358.0,0.004913]
[1722412980297,1.32667932,66359.0,66358.0,0.004913]
[1722412980499,1.54786782,66359.0,66358.0,0.000913]
[1722412980704,1.54886782,66359.0,66358.0,0.000913]
[1722412981450,1.32767932,66359.0,66358.0,0.000913]
[1722412981651,1.32767932,66359.0,66358.0,0.002913]
[1722412982063,1.32767932,66359.0,66358.0,0.000913]
[1722412982653,1.33027597,66359.0,66358.0,0.000913]
[1722412983121,1.63166597,66359.0,66358.0,0.000913]
[1722412983275,1.33027597,66359.0,66358.0,0.000913]
[1722412983764,1.9425322,66359.0,66358.0,0.000913]
[1722412983914,1.9655322,66359.0,66358.0,0.000913]
[1722412984531,2.2669222,66359.0,66358.0,0.000913]
[1722412985029,2.2769222,66359.0,66358.0,0.000913]
[1722412986107,2.26688526,66359.0,66358.0,0.000913]
[1722412986334,2.27688526,66359.0,66358.0,0.000913]
[1722412987231,2.26688526,66359.0,66358.0,0.000913]
[1722412987470,2.48764162,66359.0,66358.0,0.000913]
[1722412987637,2.42229446,66359.0,66358.0,0.000913]
[1722412988390,2.21063094,66359.0,66358.0,0.000913]
[1722412989345,2.0894303,66359.0,66358.0,0.000913]
[1722412989549,2.20138468,66359.0,66358.0,0.000913]
[1722412989722,2.41778468,66359.0,66358.0,0.000913]
[1722412989973,2.41823961,66359.0,66358.0,0.000913]
[1722412990982,2.42823961,66359.0,66358.0,0.000913]
[1722412991402,2.34335358,66359.0,66358.0,0.000913]
[1722412992701,2.3435933,66359.0,66358.0,0.000913]
[1722412993994,2.3335933,66359.0,66358.0,0.000913]
[1722412994605,2.3435933,66359.0,66358.0,0.000913]
[1722412994807,2.3335933,66359.0,66358.0,0.000913]
[1722412995238,2.44849924,66359.0,66358.0,0.000913]
[1722412995610,2.43849924,66359.0,66358.0,0.000913]
[1722412995812,2.54849924,66359.0,66358.0,0.000913]
[1722412996132,2.5484613,66359.0,66358.0,0.000913]
[1722412996535,2.5384613,66359.0,66358.0,0.000913]
[1722412996742,2.5484613,66359.0,66358.0,0.000913]
[1722412997170,2.44355536,66359.0,66358.0,0.000913]
[1722412998238,1.91576536,66359.0,66358.0,0.000913]
[1722412998455,2.13216536,66359.0,66358.0,0.000913]
[1722412998968,2.44355536,66359.0,66358.0,0.000913]
[1722412999183,2.43355536,66359.0,66358.0,0.000913]
[1722412999399,2.31094427,66359.0,66358.0,0.000913]
[1722412999590,2.44553568,66359.0,66358.0,0.000913]
[1722412999848,2.43553568,66359.0,66358.0,0.000913]
[1722413000308,1.91774568,66359.0,66358.0,0.000913]
[1722413000737,1.83754568,66359.0,66358.0,0.000913]
[1722413000958,1.74954568,66359.0,66358.0,0.000913]
[1722413001376,1.53474685,66359.0,66358.0,0.083013]
[1722413001636,1.43474717,66359.0,66358.0,0.083013]
[1722413001852,1.50632274,66359.0,66358.0,0.083013]
[1722413002076,1.31016427,66359.0,66358.0,0.000913]
[1722413002296,0.60095822,66359.0,66358.0,0.078413]
[1722413002508,0.60095822,66359.0,66358.0,0.139513]
[1722413002509,0.89325538,66359.0,66358.0,0.139513]
[1722413002761,0.84904839,66359.0,66358.0,0.139513]
[1722413002976,0.8932537,66359.0,66358.0,0.139513]
[1722413004061,0.8932537,66359.0,66358.0,0.000913]
[1722413004470,0.8932537,66359.0,66358.0,0.080613]
[1722413006169,0.59150437,66359.0,66358.0,0.080613]
[1722413006390,0.59150437,66359.0,66358.0,0.143713]
[1722413009477,0.54765839,66359.0,66358.0,0.143713]
[1722413009688,0.59169135,66359.0,66358.0,0.143713]
[1722413010306,0.66703851,66359.0,66358.0,0.143713]
[1722413012411,0.59169135,66359.0,66358.0,0.143713]
[1722413012834,0.54765839,66359.0,66358.0,0.143713]
[1722413013031,0.89305215,66359.0,66358.0,0.143713]
[1722413013921,0.89305215,66359.0,66358.0,0.080613]
[1722413014136,1.04432887,66359.0,66358.0,0.080613]
[1722413015187,0.84904839,66359.0,66358.0,0.080613]
[1722413015404,1.04445141,66359.0,66358.0,0.080613]
[1722413015846,1.04445141,66359.0,66358.0,0.000913]
[1722413016515,0.84904839,66359.0,66358.0,0.000913]
[1722413016729,0.89311468,66359.0,66358.0,0.000913]
[1722413019830,0.8934754,66359.0,66358.0,0.000913]
[1722413020647,1.71959091,66359.0,66358.0,0.000913]
[1722413021029,2.12098091,66359.0,66358.0,0.000913]
[1722413021228,2.34174473,66359.0,66358.0,0.000913]
[1722413023150,2.12250114,66359.0,66358.0,0.000913]
[1722413023598,2.34332363,66359.0,66358.0,0.000913]
[1722413024008,2.12250114,66359.0,66358.0,0.000913]
[1722413026476,2.1206702,66359.0,66358.0,0.000913]
[1722413029166,2.0340702,66359.0,66358.0,0.000913]
[1722413029405,2.1206702,66359.0,66358.0,0.000913]
[1722413030033,2.12023851,66359.0,66358.0,0.000913]
[1722413033119,2.07598122,66359.0,66358.0,0.000913]
[1722413033321,2.11976479,66359.0,66358.0,0.000913]
[1722413035979,2.11976479,66359.0,66351.0,0.000913]
[1722413035980,1.582099,66352.0,66351.0,0.000913]
[1722413036190,1.85490773,66352.0,66351.0,0.000913]
[1722413036364,1.94098631,66352.0,66351.0,0.000913]
[1722413036579,1.98357335,66352.0,66351.0,0.000913]
[1722413037571,1.98357335,66352.0,66351.0,0.001913]
[1722413037572,1.98457335,66352.0,66351.0,0.001913]
[1722413037777,2.13526767,66352.0,66351.0,0.001913]
[1722413038868,2.13526767,66352.0,66351.0,0.000913]
[1722413038869,2.13426767,66352.0,66351.0,0.000913]
[1722413039276,2.14626767,66352.0,66351.0,0.001913]
[1722413039738,2.02828851,66352.0,66351.0,0.002913]
[1722413039941,2.14958303,66352.0,66351.0,0.002913]
[1722413040272,1.532521,66351.0,66350.0,0.000913]
[1722413040474,2.15349004,66351.0,66350.0,0.000913]
[1722413040604,1.58352,66346.0,66345.0,0.000913]
[1722413040807,1.97844756,66346.0,66345.0,0.000913]
[1722413041002,2.28675858,66346.0,66345.0,0.000913]
[1722413041209,2.43571392,66346.0,66345.0,0.000913]
[1722413041410,2.44571392,66346.0,66345.0,0.000913]
[1722413041608,2.46571392,66346.0,66345.0,0.000913]
[1722413041855,1.89870958,66346.0,66345.0,0.000913]
[1722413042027,1.98530958,66346.0,66345.0,0.000913]
[1722413042523,1.90590958,66346.0,66345.0,0.000913]
[1722413042939,1.90653031,66346.0,66345.0,0.000913]
[1722413043141,1.9065302,66346.0,66345.0,0.000913]
[1722413043569,1.9115302,66346.0,66345.0,0.000913]
[1722413043971,1.8249302,66346.0,66345.0,0.000913]
[1722413044204,1.9115302,66346.0,66345.0,0.000913]
[1722413044407,1.9165302,66346.0,66345.0,0.001913]
[1722413045773,1.8555302,66346.0,66345.0,0.001913]
[1722413046180,1.73361506,66346.0,66345.0,0.001913]
[1722413046389,1.85731061,66346.0,66345.0,0.001913]
[1722413047022,1.93271061,66346.0,66345.0,0.001913]
[1722413047430,1.85731061,66346.0,66345.0,0.001913]
[1722413049613,1.85718578,66346.0,66345.0,0.001913]
[1722413052940,1.85679994,66346.0,66345.0,0.001913]
[1722413054118,1.85679994,66346.0,66345.0,0.082213]
[1722413055975,1.85679994,66346.0,66345.0,0.001913]
[1722413056230,1.85647588,66346.0,66345.0,0.001913]
[1722413056855,1.85647588,66346.0,66345.0,0.00153272]
[1722413057895,1.92007588,66346.0,66345.0,0.00153272]
[1722413059756,1.91939346,66346.0,66345.0,0.00153272]
[1722413059943,1.91939345,66346.0,66345.0,0.00153272]
[1722413060079,2.01168235,66346.0,66345.0,0.00153272]
[1722413060898,1.91939345,66346.0,66345.0,0.00153272]
[1722413062783,1.79721506,66346.0,66345.0,0.00153272]
[1722413062991,1.91990371,66346.0,66345.0,0.00153272]
[1722413064433,2.14050132,66346.0,66345.0,0.00153272]
[1722413065233,2.05390132,66346.0,66345.0,0.00153272]
[1722413065575,2.14050132,66346.0,66345.0,0.00153272]
[1722413066185,1.77024506,66346.0,66345.0,0.00153272]
[1722413066385,1.89381441,66346.0,66345.0,0.00153272]
[1722413066627,1.74361441,66346.0,66345.0,0.00153272]
[1722413066831,1.74361441,66346.0,66345.0,0.08023272]
[1722413067045,1.83021441,66346.0,66345.0,0.08023272]
[1722413069430,1.75121999,66346.0,66345.0,0.08023272]
[1722413069632,1.83037209,66346.0,66345.0,0.08023272]
[1722413070270,1.52892309,66346.0,66345.0,0.08023272]
[1722413071024,1.52975309,66346.0,66345.0,0.08023272]
[1722413072950,1.52991746,66346.0,66345.0,0.08023272]
[1722413073809,1.14186846,66346.0,66345.0,0.08023272]
[1722413074015,0.56678642,66346.0,66345.0,0.14643272]
[1722413074217,0.18610468,66346.0,66345.0,0.14643272]
[1722413074420,0.48755368,66346.0,66345.0,0.14643272]
[1722413074847,0.18610468,66346.0,66345.0,0.14643272]
[1722413075091,0.26270468,66346.0,66345.0,0.14543272]
[1722413075294,0.56815368,66346.0,66345.0,0.14543272]
[1722413075497,0.57158026,66346.0,66345.0,0.14543272]
[1722413076548,0.57158607,66346.0,66345.0,0.14543272]
[1722413079143,0.87303507,66346.0,66345.0,0.14543272]
[1722413079743,0.87353673,66346.0,66345.0,0.14543272]
[1722413080001,0.87353632,66346.0,66345.0,0.14543272]
[1722413082900,0.78693632,66346.0,66345.0,0.14543272]
[1722413083152,0.87353632,66346.0,66345.0,0.14543272]
[1722413084574,0.9526963,66346.0,66345.0,0.14543272]
[1722413086510,0.95251434,66346.0,66345.0,0.14543272]
[1722413086912,1.25396334,66346.0,66345.0,0.00053272]
[1722413088913,1.40459638,66346.0,66345.0,0.00053272]
[1722413089726,1.28102606,66346.0,66345.0,0.00053272]
[1722413089963,1.40396861,66346.0,66345.0,0.00053272]
[1722413091179,1.40396861,66346.0,66345.0,0.07883272]
[1722413093025,1.28102606,66346.0,66345.0,0.07883272]
[1722413093221,1.40494851,66346.0,66345.0,0.07883272]
[1722413096364,1.4050642,66346.0,66345.0,0.07883272]
[1722413099611,1.28102606,66346.0,66345.0,0.07883272]
[1722413099817,1.40530084,66346.0,66345.0,0.07883272]
[1722413102645,1.31870084,66346.0,66345.0,0.07883272]
[1722413102792,1.40530084,66346.0,66345.0,0.07883272]
[1722413103001,1.75487506,66346.0,66345.0,0.00053272]
[1722413103232,1.87961567,66346.0,66345.0,0.00053272]
[1722413104471,1.79671567,66346.0,66345.0,0.00053272]
[1722413105542,1.34216667,66346.0,66345.0,0.07953272]
[1722413105692,1.42876667,66346.0,66345.0,0.07953272]
[1722413106140,0.95368463,66346.0,66345.0,0.07953272]
[1722413106314,0.65181027,66346.0,66345.0,0.07953272]
[1722413106513,0.95325927,66346.0,66345.0,0.07953272]
[1722413109619,0.9524689,66346.0,66345.0,0.07953272]
[1722413112869,0.82894402,66346.0,66345.0,0.07953272]
[1722413113072,0.95241453,66346.0,66345.0,0.07953272]
[1722413113424,1.25386353,66346.0,66345.0,0.07953272]
[1722413114031,1.40449657,66346.0,66345.0,0.00053272]
[1722413114232,1.48069657,66346.0,66345.0,0.00053272]
[1722413115042,1.56679657,66346.0,66345.0,0.00053272]
[1722413115804,1.71749089,66346.0,66345.0,0.00053272]
[1722413116008,1.86824557,66346.0,66345.0,0.00053272]
[1722413116211,1.86713239,66346.0,66345.0,0.00053272]
[1722413116966,1.96713239,66346.0,66345.0,0.00053272]
[1722413119485,1.84477506,66346.0,66345.0,0.00053272]
[1722413119692,1.96639978,66346.0,66345.0,0.00053272]
[1722413119893,1.87979978,66346.0,66345.0,0.00053272]
[1722413120097,1.89019978,66346.0,66345.0,0.00053272]
[1722413122790,1.8900745,66346.0,66345.0,0.00053272]
[1722413123974,1.9706745,66346.0,66345.0,0.00053272]
[1722413126128,1.97090386,66346.0,66345.0,0.00053272]
[1722413129588,1.97223758,66346.0,66345.0,0.00053272]
[1722413129939,1.97223774,66346.0,66345.0,0.00053272]
[1722413131800,1.96978774,66346.0,66345.0,0.00053272]
[1722413132957,1.96957324,66346.0,66345.0,0.00053272]
[1722413134299,1.88897324,66346.0,66345.0,0.00053272]
[1722413134563,1.43782424,66346.0,66345.0,0.00053272]
[1722413134776,1.52442424,66346.0,66345.0,0.00053272]
[1722413135710,1.52395202,66346.0,66345.0,0.00053272]
[1722413136391,1.52395201,66346.0,66345.0,0.00053272]
[1722413139740,1.44464709,66346.0,66345.0,0.00053272]
[1722413139939,1.52231381,66346.0,66345.0,0.00053272]
[1722413140815,1.51545179,66346.0,66345.0,0.00053272]
[1722413143154,1.51578192,66346.0,66345.0,0.00053272]
[1722413146310,1.39471404,66346.0,66345.0,0.00053272]
[1722413146513,1.51683324,66346.0,66345.0,0.00053272]
[1722413149946,1.51668063,66346.0,66345.0,0.00053272]
[1722413151603,0.85499859,66346.0,66345.0,0.13863272]
[1722413151801,0.94159859,66346.0,66345.0,0.13863272]
[1722413153007,0.819632,66346.0,66345.0,0.13863272]
[1722413153288,1.24284446,66346.0,66345.0,0.13863272]
[1722413156460,1.24363275,66346.0,66345.0,0.13863272]
[1722413157248,1.24363275,66346.0,66345.0,0.07603272]
[1722413159122,1.63795423,66346.0,66345.0,0.00053272]
[1722413159341,1.41726579,66346.0,66345.0,0.00053272]
[1722413159783,1.63809091,66346.0,66345.0,0.00053272]
[1722413160536,1.41736085,66346.0,66345.0,0.00053272]
[1722413161182,1.91266165,66346.0,66345.0,0.00053272]
[1722413161382,1.67391265,66346.0,66345.0,0.00053272]
[1722413161631,1.56066085,66346.0,66345.0,0.00053272]
[1722413161816,1.86210985,66346.0,66345.0,0.00053272]
[1722413163171,1.86165,66346.0,66345.0,0.00053272]
[1722413165352,1.560201,66346.0,66345.0,0.00053272]
[1722413165968,1.86165,66346.0,66345.0,0.00053272]
[1722413166343,1.56016064,66346.0,66345.0,0.00053272]
[1722413166540,1.86160964,66346.0,66345.0,0.00053272]
[1722413166951,1.56016064,66346.0,66345.0,0.00053272]
[1722413167162,1.86160964,66346.0,66345.0,0.00053272]
[1722413167358,1.56016064,66346.0,66345.0,0.00053272]
[1722413167606,1.47956064,66346.0,66345.0,0.00053272]
[1722413167823,1.41686064,66346.0,66345.0,0.00053272]
[1722413169768,1.41697217,66346.0,66345.0,0.00053272]
[1722413173163,1.41667759,66346.0,66345.0,0.00053272]
[1722413175670,1.62807191,66346.0,66345.0,0.00053272]
[1722413175861,1.80747191,66346.0,66345.0,0.00053272]
[1722413176067,2.10892091,66346.0,66345.0,0.00053272]
[1722413176506,2.10782868,66346.0,66345.0,0.00053272]
[1722413178033,2.41927768,66346.0,66345.0,0.00053272]
[1722413179097,2.43927768,66346.0,66345.0,0.00053272]
[1722413179521,2.31840636,66346.0,66345.0,0.00053272]
[1722413179731,2.41771235,66346.0,66345.0,0.00053272]
[1722413179927,2.43771235,66346.0,66345.0,0.00053272]
[1722413180227,2.42971235,66346.0,66345.0,0.00053272]
[1722413180408,1.055327,66330.0,66329.0,0.07623272]
[1722413180612,1.33490232,66330.0,66329.0,0.07623272]
[1722413182172,1.33490232,66330.0,66329.0,0.08023272]
[1722413182985,1.3357922,66330.0,66329.0,0.08023272]
[1722413184004,1.2491922,66330.0,66329.0,0.08023272]
[1722413184229,1.3357922,66330.0,66329.0,0.08023272]
[1722413185703,1.4129256,66330.0,66329.0,0.08023272]
[1722413185901,1.3357922,66330.0,66329.0,0.08023272]
[1722413186334,1.33608172,66330.0,66329.0,0.08023272]
[1722413186737,1.49268989,66330.0,66329.0,0.08023272]
[1722413186909,1.43602709,66330.0,66329.0,0.08023272]
[1722413187115,1.35908172,66330.0,66329.0,0.08023272]
[1722413188690,1.43615108,66330.0,66329.0,0.08023272]
[1722413188890,1.90327308,66330.0,66329.0,0.004]
[1722413189515,2.1238163,66330.0,66329.0,0.004]
[1722413189720,2.1238163,66330.0,66324.0,0.085328]
[1722413189721,1.055407,66325.0,66324.0,0.085328]
[1722413189927,1.43523108,66325.0,66324.0,0.085328]
[1722413191062,1.43723108,66325.0,66324.0,0.085328]
[1722413191481,1.36016172,66325.0,66324.0,0.085328]
[1722413192873,1.36067599,66325.0,66324.0,0.085328]
[1722413193077,1.49867002,66325.0,66324.0,0.085328]
[1722413193280,1.36067599,66325.0,66324.0,0.085328]
[1722413194836,1.36067599,66325.0,66324.0,0.009328]
[1722413195994,1.3597726,66325.0,66324.0,0.009328]
[1722413196401,1.35977442,66325.0,66324.0,0.009328]
[1722413196642,1.48834267,66325.0,66324.0,0.009328]
[1722413197028,1.55274267,66325.0,66324.0,0.009328]
[1722413197251,1.63284267,66325.0,66324.0,0.009328]
[1722413197564,1.85428767,66325.0,66324.0,0.009328]
[1722413199642,1.95425967,66325.0,66324.0,0.009328]
[1722413200061,2.03102352,66325.0,66324.0,0.009328]
[1722413200633,2.11122352,66325.0,66324.0,0.009328]
[1722413201276,2.41276852,66325.0,66324.0,0.009328]
[1722413201486,2.6429492,66325.0,66324.0,0.009328]
[1722413201910,2.42276852,66325.0,66324.0,0.009328]
[1722413202163,2.42676852,66325.0,66324.0,0.009328]
[1722413202403,2.42676852,66325.0,66312.0,0.0001]
[1722413202404,1.584195,66313.0,66312.0,0.0001]
[1722413202569,1.87669827,66313.0,66312.0,0.0001]
[1722413203630,1.88769827,66313.0,66312.0,0.0001]
[1722413204060,1.87669827,66313.0,66312.0,0.0001]
[1722413204266,1.79709827,66313.0,66312.0,0.0001]
[1722413204580,1.81809827,66313.0,66312.0,0.0001]
[1722413204756,1.80809827,66313.0,66312.0,0.0001]
[1722413205204,1.81809827,66313.0,66312.0,0.0001]
[1722413205784,1.96879259,66313.0,66312.0,0.0001]
[1722413206222,1.91832392,66313.0,66312.0,0.0001]
[1722413206422,2.00032392,66313.0,66312.0,0.0001]
[1722413207325,2.00953656,66313.0,66312.0,0.0001]
[1722413208979,2.32113556,66313.0,66312.0,0.0001]
[1722413209392,2.32121099,66313.0,66312.0,0.0001]
[1722413209589,2.47190531,66313.0,66312.0,0.0001]
[1722413209775,2.49190531,66313.0,66312.0,0.0001]
[1722413211402,2.47190531,66313.0,66312.0,0.0001]
[1722413212064,2.49190531,66313.0,66312.0,0.0001]
[1722413212451,2.64245267,66313.0,66312.0,0.0001]
[1722413212643,2.47152365,66313.0,66312.0,0.0001]
[1722413213004,2.50086265,66313.0,66312.0,0.0001]
[1722413213545,2.65139754,66313.0,66312.0,0.0001]
[1722413214350,2.50086265,66313.0,66312.0,0.0001]
[1722413215739,2.95299654,66313.0,66312.0,0.0001]
[1722413216167,2.95153922,66313.0,66312.0,0.0001]
[1722413216341,3.11053922,66313.0,66312.0,0.0001]
[1722413216552,3.11053944,66313.0,66312.0,0.0001]
[1722413217934,3.09053944,66313.0,66312.0,0.0001]
[1722413218156,3.11053944,66313.0,66312.0,0.0001]
[1722413218461,2.96002041,66313.0,66312.0,0.0001]
[1722413219313,2.842672,66313.0,66312.0,0.0001]
[1722413219522,2.95967684,66313.0,66312.0,0.0001]
[1722413220150,0.180806,66310.0,66304.0,0.0003]
[1722413220357,1.10345688,66310.0,66304.0,0.0003]
[1722413220551,2.46043459,66310.0,66304.0,0.0003]
[1722413220755,2.30990888,66310.0,66304.0,0.0003]
[1722413221378,2.46043459,66310.0,66304.0,0.0003]
[1722413221603,2.61112891,66310.0,66304.0,0.0003]
[1722413221805,2.61712891,66310.0,66304.0,0.0003]
[1722413222221,2.62512891,66310.0,66309.0,0.010339]
[1722413222454,2.4746032,66310.0,66309.0,0.010339]
[1722413222683,2.35759836,66310.0,66309.0,0.010339]
[1722413222896,2.62176084,66310.0,66309.0,0.010339]
[1722413223301,2.47120464,66310.0,66309.0,0.010339]
[1722413223473,2.62176084,66310.0,66309.0,0.010339]
[1722413223673,2.61576084,66310.0,66309.0,0.010339]
[1722413223876,2.61576084,66310.0,66309.0,0.009339]
[1722413223877,2.62176084,66310.0,66309.0,0.009339]
[1722413224759,2.47120464,66310.0,66309.0,0.009339]
[1722413225335,2.48520464,66310.0,66309.0,0.009339]
[1722413225977,2.35759836,66310.0,66309.0,0.009339]
[1722413226104,2.48662278,66310.0,66309.0,0.008339]
[1722413226716,2.45862278,66310.0,66309.0,0.008339]
[1722413226937,2.48662278,66310.0,66309.0,0.008339]
[1722413227827,1.658998,66305.0,66302.0,0.009339]
[1722413227996,1.658998,66305.0,66263.0,0.311165]
[1722413227997,0.452679,66272.0,66240.0,0.0827]
[1722413228224,0.452679,66272.0,66241.0,0.07534716]
[1722413228225,0.754567,66263.0,66241.0,0.07534716]
[1722413228403,1.48497798,66263.0,66241.0,0.07534716]
[1722413228600,1.59709049,66263.0,66257.0,0.090739]
[1722413228835,1.42137798,66263.0,66257.0,0.090739]